bitfinex/quotes_ETHUSD_20240820
["timestamp","ask_amount","ask_price","bid_price","bid_amount"]
[1724178956903,3.99042327,2599.8,2599.7,5.0]
[1724178957110,3.99042327,2599.8,2599.5,5.0]
[1724178957425,3.99042327,2599.8,2599.6,0.55]
[1724178958150,3.99042327,2599.8,2599.7,5.0]
[1724178958151,0.14398327,2599.8,2599.7,5.0]
[1724178958808,0.14398327,2599.8,2599.7,5.55]
[1724178961148,0.14398327,2599.8,2599.7,0.55]
[1724178961326,0.14398327,2599.8,2599.6,0.55]
[1724178961973,3.99045327,2599.8,2599.6,0.55]
[1724178962163,4.03835629,2599.8,2599.6,0.55]
[1724178962459,3.84682,2599.6,2599.4,5.0]
[1724178962816,0.1436749,2599.5,2599.4,5.0]
[1724178963209,0.1436749,2599.5,2599.3,22.91393601]
[1724178964260,3.9905749,2599.5,2599.4,5.0]
[1724178964557,0.54272439,2599.5,2599.4,5.0]
[1724178964761,0.1436749,2599.5,2599.4,5.0]
[1724178964927,3.84672,2599.7,2599.4,5.0]
[1724178965109,3.99028981,2599.6,2599.4,5.0]
[1724178966168,3.99028981,2599.6,2599.3,17.91393601]
[1724178966471,3.84696,2599.5,2599.3,17.91393601]
[1724178966762,3.84696,2599.5,2599.1,5.0]
[1724178966763,3.84733,2599.2,2599.1,5.0]
[1724178967135,3.14346605,2599.2,2599.1,5.0]
[1724178967299,3.19136907,2599.2,2599.1,5.0]
[1724178967686,7.03869907,2599.2,2599.1,5.0]
[1724178967887,7.87770409,2599.2,2599.1,5.0]
[1724178968111,7.87770409,2599.2,2598.7,5.0]
[1724178968313,3.84765,2599.0,2598.8,0.55]
[1724178968635,3.19121749,2598.9,2598.7,5.0]
[1724178968936,3.84792,2598.8,2598.7,5.0]
[1724178969149,3.84837,2598.5,2598.4,5.0]
[1724178969282,6.84837,2598.5,2598.4,5.0]
[1724178969479,6.99168856,2598.5,2598.4,5.0]
[1724178970134,10.84005856,2598.5,2598.4,5.0]
[1724178970298,3.84852,2598.4,2598.2,5.0]
[1724178970688,0.14326169,2598.3,2598.2,5.0]
[1724178972022,0.14326169,2598.3,2598.2,5.55]
[1724178972228,0.14326169,2598.3,2598.2,0.55]
[1724178973086,3.0,2598.4,2598.2,5.55]
[1724178973325,0.14314398,2598.3,2598.2,5.55]
[1724178973828,0.14287211,2598.3,2598.2,5.55]
[1724178974142,0.40225247,2598.9,2598.2,8.5563]
[1724178974322,0.14235462,2598.3,2598.2,8.9422]
[1724178974648,4.25012247,2598.9,2598.3,1.44422]
[1724178974933,6.24484,2598.8,2598.3,0.55]
[1724178975103,3.84816,2598.7,2598.3,0.55]
[1724178975298,3.84816,2598.7,2598.4,5.0]
[1724178975530,0.14276532,2598.6,2598.4,5.0]
[1724178975698,3.99099532,2598.6,2598.4,5.0]
[1724178975899,10.69674,2598.5,2598.4,5.0]
[1724178976113,10.69674,2598.5,2598.3,0.55]
[1724178976319,3.84852,2598.4,2598.3,0.55]
[1724178976628,7.03909726,2598.4,2598.3,0.55]
[1724178976828,3.84867,2598.3,2598.2,5.0]
[1724178977042,3.84867,2598.3,2598.2,5.55]
[1724178977186,3.99130781,2598.3,2598.2,0.55]
[1724178977530,3.99130781,2598.3,2598.0,0.55]
[1724178977531,3.84887,2598.2,2598.0,0.55]
[1724178977829,0.14257441,2598.1,2598.0,0.55]
[1724178978499,3.0,2598.3,2597.9,0.55]
[1724178978717,0.14258387,2598.1,2597.9,1.35866395]
[1724178978915,3.0,2598.3,2597.9,1.35866395]
[1724178979099,0.14254744,2598.0,2597.9,3.72476395]
[1724178979302,3.0,2598.5,2597.9,3.72476395]
[1724178979595,0.14265406,2598.4,2598.0,0.38514035]
[1724178979806,0.14265406,2598.4,2598.1,0.55]
[1724178979996,3.0,2598.6,2598.1,0.55]
[1724178980306,3.0,2598.6,2598.3,5.0]
[1724178980307,3.84852,2598.4,2598.3,5.0]
[1724178981091,10.74494302,2598.4,2598.3,5.0]
[1724178981292,3.84881,2598.2,2598.1,0.55]
[1724178981529,3.84881,2598.2,2598.0,0.55]
[1724178982039,6.84862,2598.4,2598.0,0.55]
[1724178982283,6.84862,2598.4,2598.1,5.555]
[1724178982582,3.0,2598.3,2598.1,7.8333]
[1724178982742,3.0,2598.4,2598.2,0.55]
[1724178983264,3.0,2598.4,2598.3,5.0]
[1724178983463,3.0,2598.4,2598.3,5.55]
[1724178983670,6.84852,2598.4,2598.3,5.55]
[1724178983838,14.13083202,2598.4,2598.3,5.0]
[1724178984279,9.16472,2598.4,2598.3,5.0]
[1724178984485,2.4101,2598.3,2598.0,5.0]
[1724178984701,3.89685302,2598.2,2598.0,5.0]
[1724178984839,7.74576302,2598.2,2598.0,5.0]
[1724178985035,7.74572302,2598.2,2598.0,5.0]
[1724178985647,3.84891,2598.2,2598.0,5.0]
[1724178985879,3.89657302,2598.3,2598.0,5.0]
[1724178986211,6.89671302,2598.2,2597.9,5.0]
[1724178986426,6.89671302,2598.2,2598.0,0.55]
[1724178987179,3.84896,2598.1,2598.0,0.55]
[1724178987488,6.89686302,2598.1,2598.0,0.55]
[1724178988218,7.69852,2597.9,2597.8,0.1266395]
[1724178988569,10.69852,2597.9,2597.8,0.1266395]
[1724178990174,6.84926,2597.9,2597.8,0.1266395]
[1724178990823,3.0,2597.9,2597.8,0.1266395]
[1724178990968,0.40236705,2598.6,2597.8,0.6766395]
[1724178991173,0.40236705,2598.6,2597.9,2.9023]
[1724178991490,0.40236705,2598.6,2598.0,0.36559171]
[1724178991491,0.1425593,2598.5,2598.0,0.36559171]
[1724178991689,0.1425593,2598.5,2598.1,0.55]
[1724178991888,0.1425593,2598.5,2598.2,2.3523]
[1724178992085,0.1425593,2598.5,2598.3,0.55]
[1724178992297,3.84815,2598.7,2598.3,0.55]
[1724178992777,0.14264331,2598.6,2598.3,0.55]
[1724178992977,3.99087331,2598.6,2598.3,0.55]
[1724178993203,3.99087331,2598.6,2598.4,5.0]
[1724178993613,3.0,2598.5,2598.4,5.0]
[1724178993815,3.0,2598.5,2598.4,5.55]
[1724178994002,3.14261486,2598.5,2598.4,5.55]
[1724178997205,0.14261486,2598.5,2598.4,5.55]
[1724178997360,0.19051788,2598.5,2596.8,2.4157]
[1724178997667,7.69852,2597.9,2596.8,2.4157]
[1724178998063,10.84104282,2597.9,2596.8,2.4157]
[1724178998211,10.84104282,2597.9,2597.4,5.0]
[1724178999470,15.31441603,2597.9,2597.4,5.0]
[1724179000383,15.31441603,2597.9,2597.1,5.0]
[1724179001987,19.76559883,2597.9,2597.1,5.0]
[1724179002144,19.76559883,2597.9,2597.0,5.0]
[1724179002345,15.91633883,2597.9,2597.0,5.0]
[1724179002943,19.76559883,2597.9,2597.0,5.0]
[1724179003141,19.76559883,2597.9,2596.9,5.0]
[1724179004154,19.76559883,2597.9,2596.8,2.4157]
[1724179004155,22.13229883,2597.9,2596.8,7.4157]
[1724179004550,25.98155883,2597.9,2596.8,5.0]
[1724179005042,25.98155883,2597.9,2597.8,9.5e-06]
[1724179005240,25.98155883,2597.9,2595.8,0.3859]
[1724179005241,3.85104,2596.7,2596.6,5.0]
[1724179005444,7.70208,2596.7,2596.6,5.0]
[1724179005679,7.84398116,2596.7,2596.6,5.0]
[1724179005883,10.84398116,2596.7,2596.6,5.0]
[1724179006182,3.85133,2596.5,2596.4,5.0]
[1724179006393,3.99315821,2596.5,2596.4,5.0]
[1724179007193,3.99315821,2596.5,2596.2,5.0]
[1724179007593,3.0,2596.4,2596.2,5.0]
[1724179007753,7.8923307,2596.3,2596.2,5.0]
[1724179007947,10.8923307,2596.3,2596.2,5.0]
[1724179008147,3.85197,2596.1,2595.7,7.3107]
[1724179008385,3.85237,2595.8,2595.7,5.0]
[1724179008581,7.84591716,2595.8,2595.7,5.0]
[1724179008895,10.84591716,2595.8,2595.7,5.0]
[1724179009201,10.84591716,2595.8,2595.2,5.1266395]
[1724179009202,0.14117716,2595.8,2595.2,5.1266395]
[1724179009506,3.85218,2596.0,2595.3,2.4997]
[1724179009795,3.85226,2595.9,2595.4,0.76263395]
[1724179010106,0.14103623,2595.8,2595.4,0.76263395]
[1724179010397,0.14103623,2595.8,2595.4,5.76263395]
[1724179010600,0.14103623,2595.8,2595.5,0.55]
[1724179011303,3.8526,2595.7,2595.5,5.0]
[1724179011503,3.99359973,2595.7,2595.5,5.0]
[1724179012306,4.04150275,2595.7,2595.2,5.1266395]
[1724179012804,3.85278,2595.6,2595.2,5.1266395]
[1724179013008,0.14092672,2595.5,2595.2,5.1266395]
[1724179013208,3.85261,2595.7,2595.2,5.1266395]
[1724179013356,0.14096322,2595.6,2595.2,5.1266395]
[1724179014259,3.85282,2595.5,2595.3,5.0]
[1724179014464,3.99364209,2595.5,2595.4,0.55]
[1724179014981,0.14082209,2595.5,2595.4,0.55]
[1724179015192,3.90047302,2595.7,2595.4,0.55]
[1724179015400,0.14093689,2595.6,2595.3,2.8426]
[1724179016035,3.0,2595.8,2595.3,2.8426]
[1724179016235,0.1382004,2595.5,2595.3,7.8426]
[1724179016375,6.85244,2595.8,2595.3,7.8426]
[1724179016574,4.03878589,2595.7,2595.3,7.8426]
[1724179016774,3.85268,2595.6,2595.3,7.8426]
[1724179017015,3.85268,2595.6,2595.3,5.55]
[1724179017261,0.18611787,2595.5,2595.2,0.1266395]
[1724179017383,3.99114485,2595.5,2595.2,0.1266395]
[1724179017583,0.13821485,2595.5,2595.2,0.1266395]
[1724179018115,3.85264,2595.7,2595.2,0.1266395]
[1724179018423,6.85238,2595.8,2595.2,0.1266395]
[1724179018628,0.138082,2595.6,2595.2,0.1266395]
[1724179018793,0.1381185,2595.7,2595.3,0.55]
[1724179019123,10.78244,2595.8,2595.3,0.55]
[1724179019323,0.138082,2595.6,2595.3,0.55]
[1724179019523,0.1381185,2595.7,2595.3,0.55]
[1724179019767,0.13804549,2595.5,2595.3,0.55]
[1724179019929,3.85254,2595.7,2595.3,0.55]
[1724179020090,0.13802227,2595.4,2595.3,0.55]
[1724179020290,3.85254,2595.7,2595.3,0.55]
[1724179020532,6.93,2595.8,2595.3,0.55]
[1724179020533,0.1379749,2595.4,2595.3,0.55]
[1724179020706,6.93,2595.8,2595.3,0.55]
[1724179020909,0.13798437,2595.4,2595.3,0.55]
[1724179021231,3.85169,2596.3,2595.3,0.55]
[1724179021232,3.85187,2596.2,2595.4,2.2941]
[1724179021524,3.85196,2596.1,2595.5,0.55]
[1724179021732,3.85236,2595.9,2595.5,0.55]
[1724179021934,3.85253,2595.7,2595.5,0.55]
[1724179023125,3.85253,2595.7,2595.3,0.55]
[1724179023623,7.70515,2595.7,2595.3,0.55]
[1724179023779,3.85253,2595.7,2595.3,0.55]
[1724179023981,7.70513,2595.7,2595.3,0.55]
[1724179024180,8.7619566,2595.7,2595.3,0.55]
[1724179024414,1.0568266,2595.7,2595.3,0.55]
[1724179024738,3.0,2595.7,2595.3,0.55]
[1724179024886,3.0,2595.8,2595.4,2.4108]
[1724179025219,4.25458597,2596.1,2595.4,2.4108]
[1724179025220,6.85218,2596.0,2595.4,2.4108]
[1724179025530,4.1106766,2596.0,2595.5,0.55]
[1724179025829,3.0,2596.0,2595.5,0.55]
[1724179026127,3.0,2596.0,2595.6,5.0]
[1724179026336,3.40263597,2596.1,2595.7,2.8475]
[1724179026711,7.25457597,2596.1,2595.7,2.8475]
[1724179027228,3.85252,2595.7,2595.4,5.0]
[1724179027444,3.90042302,2595.7,2595.5,0.55]
[1724179028440,3.85252,2595.7,2595.5,0.55]
[1724179028650,3.85252,2595.7,2595.3,2.457]
[1724179028651,3.85252,2595.7,2595.4,0.55]
[1724179028945,7.70515,2595.7,2595.4,0.55]
[1724179029151,3.85252,2595.7,2595.4,0.55]
[1724179029354,3.90042302,2595.7,2595.4,0.55]
[1724179029534,3.85282,2595.5,2595.4,0.55]
[1724179029725,3.85282,2595.5,2595.2,0.1266395]
[1724179029726,3.90072302,2595.5,2595.3,0.55]
[1724179030049,3.85311,2595.3,2595.2,0.1266395]
[1724179030197,3.90101302,2595.3,2595.2,0.1266395]
[1724179030403,6.90101302,2595.3,2595.2,0.1266395]
[1724179031465,6.90101302,2595.3,2595.2,0.6766395]
[1724179032166,6.90101302,2595.3,2595.2,0.1266395]
[1724179032364,7.83367072,2595.3,2595.2,0.1266395]
[1724179033066,3.04790302,2595.3,2595.2,0.1266395]
[1724179033265,3.85281,2595.6,2595.2,2.9361395]
[1724179033574,3.85246,2595.8,2595.3,0.55]
[1724179033575,6.85283,2595.5,2595.3,0.55]
[1724179033863,3.85283,2595.5,2595.3,0.55]
[1724179034236,6.85264,2595.7,2595.3,0.55]
[1724179034420,3.0,2595.7,2595.4,2.432]
[1724179034618,3.0,2595.9,2595.5,0.55]
[1724179034820,6.85217,2596.0,2595.5,0.55]
[1724179035466,3.85249,2595.8,2595.5,0.55]
[1724179035667,3.0,2595.7,2595.5,0.55]
[1724179035978,3.0,2596.0,2595.5,0.55]
[1724179036128,0.40263597,2596.1,2595.5,5.55]
[1724179036333,3.85208,2596.0,2595.5,5.55]
[1724179036543,3.0,2595.9,2595.5,5.55]
[1724179036952,0.13806318,2595.8,2595.5,5.55]
[1724179037264,0.13806318,2595.8,2595.7,5.0]
[1724179037471,0.13806318,2595.8,2595.7,5.55]
[1724179038321,0.40263597,2596.1,2595.7,5.55]
[1724179038537,0.40263597,2596.1,2595.8,0.55]
[1724179039543,3.40263597,2596.1,2595.8,0.55]
[1724179040373,3.40263597,2596.1,2595.8,8.0006]
[1724179040677,3.0,2596.3,2595.8,8.0006]
[1724179040968,3.85186,2596.2,2595.8,8.0006]
[1724179041140,3.385157,2596.3,2595.9,5.0]
[1724179041345,7.236867,2596.3,2596.0,0.55]
[1724179041655,0.40249363,2596.5,2596.0,0.62704158]
[1724179041863,3.85074,2596.9,2596.1,2.3427]
[1724179042026,3.85074,2596.9,2596.3,2.3427]
[1724179042447,3.85074,2596.9,2596.4,0.55]
[1724179043190,3.85074,2596.9,2596.6,5.0]
[1724179043395,3.85074,2596.9,2596.7,0.55]
[1724179043746,3.85061,2597.0,2596.7,0.55]
[1724179043977,4.66097127,2597.0,2596.7,0.55]
[1724179044512,3.0,2596.9,2596.8,2.3947]
[1724179044794,7.25274268,2597.2,2596.8,2.9447]
[1724179045005,7.25274268,2597.2,2596.9,0.55]
[1724179045142,8.41821895,2597.2,2596.9,0.55]
[1724179045891,4.56791895,2597.2,2596.9,0.55]
[1724179046256,8.41821895,2597.2,2596.9,0.55]
[1724179046591,0.55178003,2597.7,2596.9,0.55]
[1724179046749,3.84992,2597.5,2596.9,0.55]
[1724179047468,3.85001,2597.4,2596.9,0.55]
[1724179047665,3.84986,2597.5,2596.9,0.55]
[1724179047897,3.84986,2597.5,2596.9,19.99940601]
[1724179048097,0.40237237,2597.6,2596.9,19.99940601]
[1724179048264,0.40237237,2597.6,2597.2,5.0]
[1724179048454,0.55178003,2598.1,2597.3,2.8353]
[1724179048655,5.08374803,2598.1,2597.3,2.8353]
[1724179048909,0.40235427,2597.9,2597.3,2.8353]
[1724179049195,4.25162427,2597.9,2597.3,2.8353]
[1724179050101,3.0,2597.8,2597.3,2.8353]
[1724179050302,3.0,2597.8,2597.5,5.0]
[1724179050505,3.0,2597.8,2597.6,0.55]
[1724179051504,0.13913618,2597.7,2597.6,0.55]
[1724179052008,3.84905,2598.1,2597.6,1.105]
[1724179052229,0.13925497,2598.0,2597.6,1.105]
[1724179052616,0.13925497,2598.0,2597.7,2.4925]
[1724179052907,0.13925497,2598.0,2597.8,0.55]
[1724179053130,0.13925497,2598.0,2597.8,0.90975]
[1724179053432,0.40236383,2598.3,2597.8,0.90975]
[1724179053638,0.13954767,2598.2,2597.8,0.90975]
[1724179053839,0.40236383,2598.3,2597.8,0.90975]
[1724179054055,0.13955714,2598.2,2597.8,18.82368601]
[1724179054194,0.13955714,2598.2,2597.9,6.57316781]
[1724179054391,0.40236383,2598.3,2598.1,2.3025]
[1724179054625,3.84832,2598.6,2598.2,0.55]
[1724179054810,0.13964251,2598.5,2598.2,0.55]
[1724179055830,3.13964251,2598.5,2598.2,0.55]
[1724179056037,0.13501521,2598.4,2598.2,0.55]
[1724179057039,0.13499774,2598.3,2598.2,0.55]
[1724179057201,0.13499774,2598.3,2598.2,19.11455364]
[1724179057400,0.40237992,2598.8,2598.2,19.11455364]
[1724179057600,4.25031992,2598.8,2598.2,19.11455364]
[1724179057852,0.40237992,2598.8,2598.2,19.11455364]
[1724179058137,0.13507162,2598.7,2598.4,2.335]
[1724179058305,3.40237992,2598.8,2598.5,0.55]
[1724179058512,0.13506713,2598.6,2598.5,0.55]
[1724179058833,6.84779,2598.9,2598.5,0.55]
[1724179059037,0.13508606,2598.6,2598.5,0.55]
[1724179059338,6.84779,2598.9,2598.5,7.89406414]
[1724179059512,0.13507807,2598.6,2598.5,5.55]
[1724179059714,6.84779,2598.9,2598.5,5.55]
[1724179059926,0.13507009,2598.6,2598.5,5.55]
[1724179060131,6.84779,2598.9,2598.6,5.0]
[1724179060310,10.69569,2598.9,2598.7,0.55]
[1724179060747,0.40237555,2599.2,2598.8,2.3195]
[1724179060897,3.84727,2599.3,2598.9,0.55]
[1724179061096,3.84734,2599.2,2598.9,0.55]
[1724179061310,3.84734,2599.2,2598.9,5.55]
[1724179061514,3.84719,2599.3,2598.9,5.55]
[1724179063159,3.84719,2599.3,2598.9,0.55]
[1724179063651,0.1310103,2599.2,2598.9,0.55]
[1724179064028,3.0,2599.3,2598.9,0.55]
[1724179064225,0.13097537,2599.1,2598.9,0.55]
[1724179064456,6.84719,2599.3,2598.9,0.55]
[1724179064664,0.13093896,2599.0,2598.9,0.55]
[1724179064988,6.84719,2599.3,2598.9,0.55]
[1724179065146,0.13093896,2599.0,2598.9,0.55]
[1724179065330,6.84719,2599.3,2598.9,0.55]
[1724179065656,0.13093896,2599.0,2598.9,0.55]
[1724179065851,0.13094843,2599.0,2598.9,0.55]
[1724179066242,6.84705,2599.4,2598.9,5.55]
[1724179066443,0.13096587,2599.0,2598.9,5.55]
[1724179067049,6.84705,2599.4,2598.9,5.55]
[1724179067255,0.13096587,2599.0,2598.9,5.55]
[1724179067765,6.84705,2599.4,2598.9,5.55]
[1724179067923,0.13096587,2599.0,2598.9,5.55]
[1724179068123,3.84721,2599.3,2598.9,5.55]
[1724179068442,0.13098982,2599.0,2598.9,5.55]
[1724179068642,3.84721,2599.3,2598.9,5.55]
[1724179068863,6.84706,2599.4,2598.9,5.55]
[1724179069028,3.0,2599.4,2598.9,5.55]
[1724179069230,0.1310432,2599.3,2599.0,5.0]
[1724179069475,3.8472,2599.3,2599.1,0.55]
[1724179069671,0.13099881,2599.2,2599.1,0.55]
[1724179070036,0.04790302,2599.2,2599.1,0.55]
[1724179070333,0.04790302,2599.2,2598.8,2.3195]
[1724179070334,3.84704,2599.4,2598.9,5.0]
[1724179070535,0.13101774,2599.2,2599.0,0.55]
[1724179070843,3.0,2599.3,2599.0,0.55]
[1724179071056,0.13098133,2599.1,2599.0,0.55]
[1724179071235,6.89511302,2599.3,2599.0,0.55]
[1724179071790,0.13098581,2599.2,2599.0,0.55]
[1724179072075,6.84721,2599.3,2599.0,0.55]
[1724179072237,6.84721,2599.3,2599.0,5.55]
[1724179072437,0.13103487,2599.1,2599.0,5.55]
[1724179072683,6.84721,2599.3,2599.0,5.55]
[1724179072897,0.13104433,2599.1,2599.0,5.55]
[1724179073035,6.84721,2599.3,2599.0,5.55]
[1724179073235,0.13108074,2599.2,2599.0,0.55]
[1724179073437,6.84721,2599.3,2599.0,0.55]
[1724179073874,0.13103284,2599.2,2599.0,0.55]
[1724179074287,0.13107623,2599.1,2599.0,0.55]
[1724179074582,6.84721,2599.3,2598.9,0.55]
[1724179074740,0.13108569,2599.1,2598.9,0.55]
[1724179074941,6.84721,2599.3,2598.9,0.55]
[1724179075139,0.13105875,2599.0,2598.9,5.55]
[1724179075389,6.84721,2599.3,2598.9,5.55]
[1724179075556,0.13105875,2599.0,2598.9,5.55]
[1724179075753,3.0,2599.3,2598.9,5.55]
[1724179075945,0.13105875,2599.0,2598.9,5.55]
[1724179076141,3.0,2599.3,2599.0,5.0]
[1724179077859,6.8472,2599.3,2599.0,5.0]
[1724179078167,6.8472,2599.3,2598.9,5.55]
[1724179078168,0.04790302,2599.2,2598.9,5.55]
[1724179078499,6.89510302,2599.3,2598.9,5.55]
[1724179078645,3.84763,2599.0,2598.9,5.0]
[1724179079002,12.17218801,2599.0,2598.9,5.0]
[1724179079144,3.84805,2598.8,2598.6,25.32393601]
[1724179079340,7.74404302,2598.7,2598.6,17.91393601]
[1724179079545,7.74404302,2598.7,2598.2,5.0]
[1724179079546,3.84862,2598.4,2598.2,5.0]
[1724179079845,3.89621302,2598.6,2598.2,5.0]
[1724179080089,7.74454302,2598.6,2598.2,5.0]
[1724179080441,3.89621302,2598.6,2598.2,5.0]
[1724179081343,3.89621302,2598.6,2598.3,0.55]
[1724179081585,0.13083299,2598.5,2598.3,0.55]
[1724179082346,3.0,2598.9,2598.4,0.555]
[1724179082347,6.84785,2598.9,2598.4,0.555]
[1724179082556,3.0,2598.9,2598.5,0.55]
[1724179083159,3.0,2598.9,2598.5,5.55]
[1724179083577,6.84787,2598.9,2598.5,5.55]
[1724179084353,3.84796,2598.8,2598.5,5.55]
[1724179084550,6.84808,2598.7,2598.5,5.55]
[1724179084751,3.84808,2598.7,2598.5,5.55]
[1724179085276,6.84793,2598.8,2598.5,0.55]
[1724179085481,6.84793,2598.8,2598.3,0.55]
[1724179086199,6.84793,2598.8,2598.3,5.55]
[1724179086353,3.84807,2598.7,2598.3,5.55]
[1724179086551,3.84823,2598.6,2598.3,5.55]
[1724179086845,3.84807,2598.7,2598.3,5.55]
[1724179086846,3.84809,2598.7,2598.3,5.55]
[1724179087051,3.0,2598.8,2598.4,2.3233]
[1724179087352,6.84799,2598.8,2598.5,5.55]
[1724179088700,3.0,2598.8,2598.5,5.55]
[1724179088852,6.84793,2598.8,2598.5,5.55]
[1724179089259,6.84793,2598.8,2598.6,5.0]
[1724179089488,6.84793,2598.8,2598.6,22.91393601]
[1724179090905,10.69598,2598.8,2598.6,22.91393601]
[1724179091253,10.69598,2598.8,2598.6,17.91393601]
[1724179091254,3.84807,2598.7,2598.6,17.91393601]
[1724179091458,6.84807,2598.7,2598.6,18.46393601]
[1724179091700,3.0,2598.7,2598.6,18.46393601]
[1724179091882,6.8478,2598.9,2598.6,18.46393601]
[1724179092207,3.0,2598.9,2598.6,23.46393601]
[1724179092905,3.0,2598.9,2598.6,25.55151552]
[1724179093059,0.40231567,2599.1,2598.8,2.4617]
[1724179093391,3.0,2599.1,2598.9,0.55]
[1724179093962,3.8472,2599.3,2598.9,0.55]
[1724179094311,3.8472,2599.3,2598.9,5.55]
[1724179094471,0.40226391,2599.4,2598.9,6.35117]
[1724179094673,6.84691,2599.5,2598.9,6.35117]
[1724179095690,3.0,2599.5,2599.0,2.4237]
[1724179095893,0.40224783,2599.6,2599.1,0.55]
[1724179095894,4.24899783,2599.6,2599.1,0.55]
[1724179096111,3.8466,2599.7,2599.3,2.3086]
[1724179096262,3.84641,2599.9,2599.4,5.55]
[1724179096791,0.13119315,2599.8,2599.4,5.55]
[1724179097175,0.13119315,2599.8,2599.5,5.0]
[1724179097510,0.13119315,2599.8,2599.6,0.55]
[1724179098615,0.40230572,2600.0,2599.6,0.55]
[1724179098768,0.13134979,2599.7,2599.6,0.55]
[1724179098983,3.84602,2600.1,2599.6,3.4136]
[1724179099284,3.84602,2600.1,2599.6,2.8586]
[1724179099629,0.13143853,2600.0,2599.6,2.8586]
[1724179100017,4.24812836,2600.3,2599.6,2.8586]
[1724179100331,0.13141425,2599.9,2599.6,7.8586]
[1724179100502,0.40231836,2600.3,2599.6,7.8586]
[1724179100503,3.40231836,2600.3,2599.6,7.8586]
[1724179100824,0.13143371,2599.8,2599.7,0.78586]
[1724179101134,7.69192,2600.2,2599.7,1.33586]
[1724179101335,0.13141776,2599.8,2599.6,5.0]
[1724179101630,3.84653,2599.8,2599.6,5.0]
[1724179101929,3.97795027,2599.7,2599.6,5.0]
[1724179102276,3.97795027,2599.7,2599.4,5.0]
[1724179102687,3.97795027,2599.7,2599.5,0.55]
[1724179103029,3.97795027,2599.7,2599.4,5.0]
[1724179103030,7.69378,2599.5,2599.4,5.0]
[1724179103235,7.69378,2599.5,2599.1,5.0]
[1724179103236,3.84706,2599.4,2599.1,5.0]
[1724179103380,3.89496302,2599.4,2599.1,5.0]
[1724179103586,0.13126548,2599.3,2599.1,5.0]
[1724179104133,3.97845548,2599.3,2599.1,5.0]
[1724179104487,3.97845548,2599.3,2599.0,7.4604]
[1724179104689,0.13126548,2599.3,2599.0,7.4604]
[1724179105431,0.13126548,2599.3,2599.1,5.0]
[1724179105635,3.97848548,2599.3,2599.1,5.0]
[1724179105803,0.1791685,2599.3,2599.1,5.0]
[1724179106189,0.1791685,2599.3,2599.0,2.4604]
[1724179106190,0.1791685,2599.3,2599.0,7.4604]
[1724179106433,0.1791685,2599.3,2599.1,0.55]
[1724179107241,0.13126548,2599.3,2599.1,5.55]
[1724179107747,3.0,2599.5,2599.1,5.55]
[1724179107894,0.13118763,2599.2,2599.1,5.55]
[1724179108094,0.13118763,2599.2,2599.1,6.35104]
[1724179108298,3.0,2599.6,2599.1,6.35104]
[1724179108550,0.13118763,2599.2,2599.1,6.35104]
[1724179108729,3.0,2599.7,2599.1,8.80894]
[1724179109096,3.0,2599.7,2599.1,3.80894]
[1724179109358,6.84661,2599.7,2599.2,5.0]
[1724179109501,0.13135216,2599.6,2599.3,0.55]
[1724179110045,3.97811216,2599.6,2599.3,0.55]
[1724179110250,3.97811216,2599.6,2599.4,5.0]
[1724179111119,3.97811216,2599.6,2599.3,0.55]
[1724179111120,3.84689,2599.5,2599.3,0.55]
[1724179111302,3.97837302,2599.4,2599.3,0.55]
[1724179112604,3.97837302,2599.4,2599.2,0.55]
[1724179113651,3.89508302,2599.3,2599.2,0.55]
[1724179113949,3.84733,2599.2,2599.1,5.0]
[1724179114100,3.97858531,2599.3,2599.1,5.55]
[1724179114303,3.97858531,2599.3,2599.1,0.55]
[1724179114304,0.13135891,2599.2,2599.1,0.55]
[1724179114535,0.13135891,2599.2,2599.0,0.55]
[1724179114703,3.84719,2599.3,2599.0,0.55]
[1724179114903,0.13132251,2599.1,2599.0,0.55]
[1724179115417,7.69448,2599.3,2599.0,0.55]
[1724179115618,0.13129268,2599.2,2599.0,0.55]
[1724179116068,3.89509302,2599.3,2599.0,0.55]
[1724179116355,0.13126574,2599.1,2599.0,0.55]
[1724179116499,3.89509302,2599.3,2599.0,0.55]
[1724179116702,0.13123227,2599.1,2599.0,0.55]
[1724179116949,3.89509302,2599.3,2599.0,0.55]
[1724179117153,0.13123227,2599.1,2599.0,5.55]
[1724179117926,3.84719,2599.3,2599.0,5.55]
[1724179118161,0.13126868,2599.2,2599.0,0.55]
[1724179118343,3.84719,2599.3,2599.0,0.55]
[1724179118539,0.13126868,2599.2,2599.0,0.55]
[1724179118715,3.84719,2599.3,2599.0,0.55]
[1724179119057,0.13126868,2599.2,2599.0,0.55]
[1724179119428,3.84719,2599.3,2599.0,0.55]
[1724179119641,3.84748,2599.1,2598.9,5.0]
[1724179119841,7.69526,2599.0,2598.9,5.0]
[1724179120163,7.69526,2599.0,2598.7,7.41]
[1724179120164,3.84792,2598.8,2598.7,7.41]
[1724179120329,7.82702157,2598.8,2598.7,7.41]
[1724179123423,3.97910157,2598.8,2598.7,7.41]
[1724179123670,4.02700459,2598.8,2598.7,7.41]
[1724179123834,3.84822,2598.6,2598.5,17.91393601]
[1724179124171,3.84822,2598.6,2598.2,2.385]